[Event "Early-Titled-Tuesday-Blitz-October-24-2023"]
[Site "Chess.com"]
[Date "2023.10.24"]
[Round "1"]
[White "Grandmaster1369"]
[Black "viktorgen2021"]
[Result "1-0"]
[WhiteElo "2789"]
[BlackElo "2429"]
[TimeControl "180+1"]
[EndTime "8:06:39 PDT"]
[Termination "Grandmaster1369 won by checkmate"]

1. e4 {[%clk 0:02:58.8]} 1... c6 {[%clk 0:02:57.7]} 2. d4 {[%clk 0:02:58.1]}
2... d5 {[%clk 0:02:47.7]} 3. f3 {[%clk 0:02:57]} 3... dxe4 {[%clk 0:02:47.1]}
4. fxe4 {[%clk 0:02:57.9]} 4... e5 {[%clk 0:02:47.3]} 5. Nf3 {[%clk 0:02:58.4]}
5... Bg4 {[%clk 0:02:45.7]} 6. Bc4 {[%clk 0:02:57]} 6... Nf6 {[%clk 0:02:37.9]}
7. O-O {[%clk 0:02:56.1]} 7... exd4 {[%clk 0:02:37.2]} 8. Bxf7+ {[%clk
0:02:50.4]} 8... Kxf7 {[%clk 0:02:34]} 9. Ne5+ {[%clk 0:02:50.7]} 9... Ke8
{[%clk 0:02:29.9]} 10. Nxg4 {[%clk 0:02:50.8]} 10... Be7 {[%clk 0:02:29.7]} 11.
Nxf6+ {[%clk 0:02:46.4]} 11... Bxf6 {[%clk 0:02:30.6]} 12. e5 {[%clk 0:02:46.5]}
12... Be7 {[%clk 0:02:29]} 13. Qg4 {[%clk 0:02:31.9]} 13... g6 {[%clk
0:02:22.7]} 14. Bh6 {[%clk 0:02:29.5]} 14... Qd5 {[%clk 0:02:20.2]} 15. Qc8+
{[%clk 0:02:25.8]} 15... Qd8 {[%clk 0:02:14.5]} 16. Qxb7 {[%clk 0:02:25.1]}
16... Nd7 {[%clk 0:02:14.1]} 17. Qxc6 {[%clk 0:02:22.9]} 17... Rc8 {[%clk
0:02:14.1]} 18. Qe6 {[%clk 0:02:11.6]} 18... Nc5 {[%clk 0:02:11.4]} 19. Qf7+
{[%clk 0:02:04.4]} 19... Kd7 {[%clk 0:02:08.6]} 20. Nd2 {[%clk 0:01:52.5]} 20...
Kc6 {[%clk 0:02:07]} 21. b4 {[%clk 0:01:49.5]} 21... Na4 {[%clk 0:02:02.4]} 22.
Qb3 {[%clk 0:01:24.1]} 22... Nc3 {[%clk 0:01:56.3]} 23. Rf7 {[%clk 0:01:21.9]}
23... Kb7 {[%clk 0:01:50.1]} 24. Raf1 {[%clk 0:01:14.5]} 24... Rc7 {[%clk
0:01:50.3]} 25. Nc4 {[%clk 0:01:12.2]} 25... Kb8 {[%clk 0:01:44.4]} 26. Na5
{[%clk 0:01:11]} 26... Qc8 {[%clk 0:01:39.6]} 27. a3 {[%clk 0:01:09.7]} 27...
Rd8 {[%clk 0:01:32.1]} 28. Kh1 {[%clk 0:01:08.7]} 28... d3 {[%clk 0:01:19.6]}
29. cxd3 {[%clk 0:01:08.7]} 29... Rxd3 {[%clk 0:01:20.5]} 30. b5 {[%clk
0:01:09.1]} 30... Ka8 {[%clk 0:01:13.8]} 31. Nc6 {[%clk 0:01:09.2]} 31... Bc5
{[%clk 0:01:08.3]} 32. Rxc7 {[%clk 0:01:08.5]} 32... Qxc7 {[%clk 0:01:09.2]} 33.
Qc4 {[%clk 0:01:09.1]} 33... Qd7 {[%clk 0:00:54.6]} 34. Qxc5 {[%clk 0:00:18.6]}
34... Rd1 {[%clk 0:00:51.9]} 35. Qf8+ {[%clk 0:00:18.1]} 35... Qd8 {[%clk
0:00:46.5]} 36. Nxd8 {[%clk 0:00:18.7]} 36... Kb8 {[%clk 0:00:42.4]} 37. Rxd1
{[%clk 0:00:18.5]} 37... Nxd1 {[%clk 0:00:42.3]} 38. Nc6+ {[%clk 0:00:19.4]}
38... Kc7 {[%clk 0:00:42.5]} 39. Qd8+ {[%clk 0:00:20]} 39... Kb7 {[%clk
0:00:42.8]} 40. Qb8# {[%clk 0:00:20.9]} 1-0

[Event "Early-Titled-Tuesday-Blitz-October-24-2023"]
[Site "Chess.com"]
[Date "2023.10.24"]
[Round "1"]
[White "mr_gustavo"]
[Black "giomar27"]
[Result "1-0"]
[WhiteElo "2671"]
[BlackElo "2355"]
[TimeControl "180+1"]
[EndTime "8:06:40 PDT"]
[Termination "mr_gustavo won by checkmate"]

1. Nf3 {[%clk 0:03:00]} 1... Nf6 {[%clk 0:02:58.6]} 2. b3 {[%clk 0:02:59.7]}
2... d5 {[%clk 0:02:53.7]} 3. Bb2 {[%clk 0:03:00.3]} 3... c5 {[%clk 0:02:51.2]}
4. g3 {[%clk 0:03:00.7]} 4... Nc6 {[%clk 0:02:48.9]} 5. Bg2 {[%clk 0:03:01.3]}
5... g6 {[%clk 0:02:47]} 6. O-O {[%clk 0:03:01.7]} 6... Bg7 {[%clk 0:02:45.3]}
7. d4 {[%clk 0:03:02.2]} 7... cxd4 {[%clk 0:02:42.5]} 8. Nxd4 {[%clk 0:03:03.1]}
8... O-O {[%clk 0:02:42.1]} 9. Nd2 {[%clk 0:03:02.9]} 9... Re8 {[%clk
0:02:39.8]} 10. Nxc6 {[%clk 0:03:01.8]} 10... bxc6 {[%clk 0:02:39.7]} 11. Nf3
{[%clk 0:03:01.1]} 11... a5 {[%clk 0:02:33.3]} 12. c4 {[%clk 0:03:00]} 12... Ba6
{[%clk 0:02:28.4]} 13. Ne5 {[%clk 0:02:59.6]} 13... Rc8 {[%clk 0:02:24.1]} 14.
Rc1 {[%clk 0:02:58]} 14... Qb6 {[%clk 0:02:17.7]} 15. cxd5 {[%clk 0:02:50.9]}
15... cxd5 {[%clk 0:02:15]} 16. Bxd5 {[%clk 0:02:49.8]} 16... e6 {[%clk
0:02:06.3]} 17. Bc4 {[%clk 0:02:36]} 17... Red8 {[%clk 0:02:04.6]} 18. Qe1
{[%clk 0:02:32.4]} 18... Bb7 {[%clk 0:02:02.3]} 19. Nf3 {[%clk 0:02:14.3]} 19...
a4 {[%clk 0:01:56.8]} 20. Ba1 {[%clk 0:02:03.9]} 20... axb3 {[%clk 0:01:54.2]}
21. axb3 {[%clk 0:02:04.1]} 21... Ra8 {[%clk 0:01:43.5]} 22. Be5 {[%clk
0:01:52.2]} 22... Rd7 {[%clk 0:01:37.5]} 23. Ra1 {[%clk 0:01:51.4]} 23... Rad8
{[%clk 0:01:36.5]} 24. Qc3 {[%clk 0:01:50.4]} 24... Ne4 {[%clk 0:01:35]} 25. Qb2
{[%clk 0:01:50.4]} 25... f6 {[%clk 0:01:12.3]} 26. Bf4 {[%clk 0:01:43.4]} 26...
Kh8 {[%clk 0:01:06.2]} 27. Qc2 {[%clk 0:01:33.9]} 27... e5 {[%clk 0:00:57.9]}
28. Be3 {[%clk 0:01:34.1]} 28... Qc6 {[%clk 0:00:58.3]} 29. Rfd1 {[%clk
0:01:29.5]} 29... f5 {[%clk 0:00:52.9]} 30. Rxd7 {[%clk 0:01:23.5]} 30... Rxd7
{[%clk 0:00:53.1]} 31. Rd1 {[%clk 0:01:22.8]} 31... Nd6 {[%clk 0:00:35.5]} 32.
Qd2 {[%clk 0:01:02.4]} 32... Bc8 {[%clk 0:00:15]} 33. Bd5 {[%clk 0:01:01.2]}
33... Qc7 {[%clk 0:00:12.3]} 34. Ng5 {[%clk 0:00:55.6]} 34... h6 {[%clk
0:00:10.3]} 35. Ne6 {[%clk 0:00:55.1]} 35... Qb8 {[%clk 0:00:06.6]} 36. Bxh6
{[%clk 0:00:55.2]} 36... Ne4 {[%clk 0:00:05.6]} 37. Bxg7+ {[%clk 0:00:54]} 37...
Rxg7 {[%clk 0:00:05.6]} 38. Qh6+ {[%clk 0:00:52]} 38... Rh7 {[%clk 0:00:06.2]}
39. Qf8# {[%clk 0:00:51.7]} 1-0

[Event "Early-Titled-Tuesday-Blitz-October-24-2023"]
[Site "Chess.com"]
[Date "2023.10.24"]
[Round "1"]
[White "OPQRC"]
[Black "BeautiFullMindChess"]
[Result "1-0"]
[WhiteElo "2592"]
[BlackElo "2262"]
[TimeControl "180+1"]
[EndTime "8:06:40 PDT"]
[Termination "OPQRC won on time"]

1. e4 {[%clk 0:02:59.9]} 1... d5 {[%clk 0:02:57.6]} 2. exd5 {[%clk 0:02:59.7]}
2... Qxd5 {[%clk 0:02:58.5]} 3. Nc3 {[%clk 0:02:56.5]} 3... Qa5 {[%clk
0:02:58.6]} 4. Bc4 {[%clk 0:02:56.7]} 4... Nf6 {[%clk 0:02:58.3]} 5. d3 {[%clk
0:02:56.7]} 5... e5 {[%clk 0:02:54]} 6. Bd2 {[%clk 0:02:55.7]} 6... Bb4 {[%clk
0:02:51.8]} 7. a3 {[%clk 0:02:54.7]} 7... Bxc3 {[%clk 0:02:50.7]} 8. Bxc3 {[%clk
0:02:55.6]} 8... Qc5 {[%clk 0:02:50.5]} 9. Qe2 {[%clk 0:02:45.9]} 9... Nc6
{[%clk 0:02:48.7]} 10. Nf3 {[%clk 0:02:43.5]} 10... O-O {[%clk 0:02:15.4]} 11.
h3 {[%clk 0:02:42.5]} 11... Re8 {[%clk 0:02:14.1]} 12. Ng5 {[%clk 0:02:41]}
12... Re7 {[%clk 0:01:53.7]} 13. O-O-O {[%clk 0:02:33.8]} 13... h6 {[%clk
0:01:52.8]} 14. Ne4 {[%clk 0:02:31.2]} 14... Nxe4 {[%clk 0:01:52.1]} 15. Qxe4
{[%clk 0:02:31.1]} 15... Be6 {[%clk 0:01:50.2]} 16. Kb1 {[%clk 0:01:58]} 16...
b5 {[%clk 0:01:43.8]} 17. Bxe6 {[%clk 0:01:55.5]} 17... Rxe6 {[%clk 0:01:44.7]}
18. f4 {[%clk 0:01:50.6]} 18... exf4 {[%clk 0:01:36]} 19. Qxf4 {[%clk
0:01:50.7]} 19... a5 {[%clk 0:01:29]} 20. Rhf1 {[%clk 0:01:45.6]} 20... Rf8
{[%clk 0:01:01.8]} 21. Rde1 {[%clk 0:01:40.6]} 21... Rxe1+ {[%clk 0:00:55.5]}
22. Rxe1 {[%clk 0:01:41.5]} 22... b4 {[%clk 0:00:56]} 23. axb4 {[%clk
0:00:55.5]} 23... axb4 {[%clk 0:00:56.9]} 24. Be5 {[%clk 0:00:46.3]} 24... b3
{[%clk 0:00:33.1]} 25. cxb3 {[%clk 0:00:38.4]} 25... Nb4 {[%clk 0:00:13.6]} 26.
Bc3 {[%clk 0:00:33]} 26... Nxd3 {[%clk 0:00:09.7]} 27. Qg3 {[%clk 0:00:33.2]}
27... Qxc3 {[%clk 0:00:01.2]} 28. bxc3 {[%clk 0:00:31.3]} 1-0

[Event "Early-Titled-Tuesday-Blitz-October-24-2023"]
[Site "Chess.com"]
[Date "2023.10.24"]
[Round "1"]
[White "ChessBliss09"]
[Black "MasterKroket"]
[Result "0-1"]
[WhiteElo "2030"]
[BlackElo "2533"]
[TimeControl "180+1"]
[EndTime "8:06:41 PDT"]
[Termination "MasterKroket won by checkmate"]

1. e4 {[%clk 0:02:58]} 1... e5 {[%clk 0:02:59.6]} 2. Nf3 {[%clk 0:02:57.6]} 2...
Nc6 {[%clk 0:02:59.2]} 3. Bc4 {[%clk 0:02:57.3]} 3... Bc5 {[%clk 0:02:58.8]} 4.
O-O {[%clk 0:02:55.8]} 4... Nf6 {[%clk 0:02:58.2]} 5. d3 {[%clk 0:02:56.1]} 5...
h6 {[%clk 0:02:56.4]} 6. c3 {[%clk 0:02:54.8]} 6... d6 {[%clk 0:02:52.1]} 7. b4
{[%clk 0:02:53.6]} 7... Bb6 {[%clk 0:02:52.2]} 8. a4 {[%clk 0:02:53.4]} 8... a5
{[%clk 0:02:52.1]} 9. b5 {[%clk 0:02:52.9]} 9... Ne7 {[%clk 0:02:52.3]} 10. Be3
{[%clk 0:02:45.4]} 10... Bxe3 {[%clk 0:02:38.9]} 11. fxe3 {[%clk 0:02:45.3]}
11... c6 {[%clk 0:02:36.4]} 12. Nbd2 {[%clk 0:02:23.6]} 12... d5 {[%clk
0:02:35.4]} 13. exd5 {[%clk 0:02:23.3]} 13... cxd5 {[%clk 0:02:35]} 14. Bb3
{[%clk 0:02:21.8]} 14... Qc7 {[%clk 0:02:29.1]} 15. c4 {[%clk 0:02:16.8]} 15...
e4 {[%clk 0:02:22.3]} 16. dxe4 {[%clk 0:02:14.4]} 16... dxe4 {[%clk 0:02:22.6]}
17. Nd4 {[%clk 0:02:14]} 17... Ng4 {[%clk 0:02:13.3]} 18. Rf4 {[%clk 0:00:40.1]}
18... Nxe3 {[%clk 0:02:12.2]} 19. Qe2 {[%clk 0:00:15.2]} 19... Qxf4 {[%clk
0:02:11.3]} 20. g3 {[%clk 0:00:13.4]} 20... Qe5 {[%clk 0:01:38.9]} 21. Qxe3
{[%clk 0:00:13.7]} 21... Nf5 {[%clk 0:01:32.2]} 22. N2f3 {[%clk 0:00:11.6]}
22... Nxe3 {[%clk 0:01:24.7]} 23. Nxe5 {[%clk 0:00:11]} 23... Ng4 {[%clk
0:01:21.9]} 24. Nxg4 {[%clk 0:00:07.4]} 24... Bxg4 {[%clk 0:01:22.8]} 25. c5
{[%clk 0:00:05.5]} 25... Rd8 {[%clk 0:01:19]} 26. Nc2 {[%clk 0:00:04]} 26... Rd2
{[%clk 0:01:14]} 27. Rf1 {[%clk 0:00:03.2]} 27... Bf3 {[%clk 0:01:13.7]} 28. Ne3
{[%clk 0:00:02.1]} 28... Rd3 {[%clk 0:01:11.3]} 29. Bxf7+ {[%clk 0:00:02.3]}
29... Kxf7 {[%clk 0:01:10.6]} 30. Kf2 {[%clk 0:00:02.9]} 30... Rd2+ {[%clk
0:01:10.4]} 31. Ke1 {[%clk 0:00:03]} 31... Re2+ {[%clk 0:01:10.5]} 32. Kd1
{[%clk 0:00:03]} 32... Rd8+ {[%clk 0:01:10.8]} 33. Kc1 {[%clk 0:00:02.8]} 33...
Rxe3 {[%clk 0:01:10.4]} 34. c6 {[%clk 0:00:02.4]} 34... bxc6 {[%clk 0:01:10.2]}
35. bxc6 {[%clk 0:00:03.3]} 35... Rc8 {[%clk 0:01:10.2]} 36. Kb2 {[%clk
0:00:02.8]} 36... Rxc6 {[%clk 0:01:10.5]} 37. Ka2 {[%clk 0:00:01.8]} 37... Rc2+
{[%clk 0:01:10.3]} 38. Kb1 {[%clk 0:00:02]} 38... Rxh2 {[%clk 0:01:10]} 39. Ka1
{[%clk 0:00:02.9]} 39... Ree2 {[%clk 0:01:07.1]} 40. Kb1 {[%clk 0:00:02.2]}
40... Ra2 {[%clk 0:01:07]} 41. Rd1 {[%clk 0:00:01.2]} 41... Bxd1 {[%clk
0:01:04.4]} 42. Kc1 {[%clk 0:00:01.4]} 42... Bg4 {[%clk 0:01:03.2]} 43. Kb1
{[%clk 0:00:01.5]} 43... Rag2 {[%clk 0:01:02.5]} 44. Kc1 {[%clk 0:00:01.8]}
44... Rh1# {[%clk 0:01:03]} 0-1

[Event "Early-Titled-Tuesday-Blitz-October-24-2023"]
[Site "Chess.com"]
[Date "2023.10.24"]
[Round "1"]
[White "carloseduar100"]
[Black "SashaKuzhilniy"]
[Result "0-1"]
[WhiteElo "2326"]
[BlackElo "2643"]
[TimeControl "180+1"]
[EndTime "8:06:43 PDT"]
[Termination "SashaKuzhilniy won on time"]

1. e4 {[%clk 0:02:50]} 1... g6 {[%clk 0:03:00.2]} 2. Nf3 {[%clk 0:02:49.8]} 2...
Bg7 {[%clk 0:03:00.8]} 3. d4 {[%clk 0:02:50.5]} 3... d6 {[%clk 0:03:01.4]} 4. c3
{[%clk 0:02:51.4]} 4... Nf6 {[%clk 0:02:56.7]} 5. Bd3 {[%clk 0:02:52.3]} 5...
O-O {[%clk 0:02:54.8]} 6. O-O {[%clk 0:02:52.7]} 6... Nc6 {[%clk 0:02:55.4]} 7.
h3 {[%clk 0:02:51]} 7... e5 {[%clk 0:02:55.5]} 8. Re1 {[%clk 0:02:50.5]} 8... a6
{[%clk 0:02:43.7]} 9. a3 {[%clk 0:02:50.8]} 9... Re8 {[%clk 0:02:42.4]} 10. Nbd2
{[%clk 0:02:50.9]} 10... exd4 {[%clk 0:02:40.4]} 11. cxd4 {[%clk 0:02:51]} 11...
Nd7 {[%clk 0:02:41.3]} 12. Nb3 {[%clk 0:02:30.6]} 12... a5 {[%clk 0:02:41.3]}
13. Be3 {[%clk 0:02:19.3]} 13... a4 {[%clk 0:02:37.9]} 14. Nbd2 {[%clk
0:02:19.5]} 14... h6 {[%clk 0:02:30.5]} 15. Nf1 {[%clk 0:02:17.6]} 15... Qf6
{[%clk 0:02:20.2]} 16. Rc1 {[%clk 0:02:14.7]} 16... Nb6 {[%clk 0:02:17]} 17. g3
{[%clk 0:02:10.5]} 17... Bxh3 {[%clk 0:02:15.8]} 18. N1h2 {[%clk 0:02:08.7]}
18... Qd8 {[%clk 0:02:05.8]} 19. Qd2 {[%clk 0:02:03.6]} 19... Kh7 {[%clk
0:02:02.5]} 20. g4 {[%clk 0:01:56]} 20... Na5 {[%clk 0:01:51]} 21. Rc3 {[%clk
0:00:56.8]} 21... d5 {[%clk 0:01:41.8]} 22. e5 {[%clk 0:00:56.2]} 22... Nbc4
{[%clk 0:01:42.1]} 23. Qc1 {[%clk 0:00:54.8]} 23... Nb3 {[%clk 0:01:41.5]} 24.
Qd1 {[%clk 0:00:49]} 24... Qd7 {[%clk 0:01:34.8]} 25. g5 {[%clk 0:00:45.7]}
25... h5 {[%clk 0:01:33]} 26. Nh4 {[%clk 0:00:38.5]} 26... Bg4 {[%clk
0:01:19.7]} 27. f3 {[%clk 0:00:28.6]} 27... Be6 {[%clk 0:01:19.5]} 28. Bc1
{[%clk 0:00:27.8]} 28... Nxd4 {[%clk 0:01:11.3]} 29. Bxg6+ {[%clk 0:00:14.7]}
29... fxg6 {[%clk 0:01:09.5]} 30. Qxd4 {[%clk 0:00:14.9]} 30... Bf5 {[%clk
0:01:03.9]} 31. Nxf5 {[%clk 0:00:09.5]} 31... Qxf5 {[%clk 0:01:04.8]} 32. Qxd5
{[%clk 0:00:06.3]} 32... Rxe5 {[%clk 0:01:03.1]} 33. Qxc4 {[%clk 0:00:05.8]}
33... Rxe1+ {[%clk 0:01:03.1]} 34. Kf2 {[%clk 0:00:06.4]} 34... Rae8 {[%clk
0:01:01.5]} 35. Re3 {[%clk 0:00:01.4]} 35... Rxc1 {[%clk 0:00:51.7]} 0-1

[Event "Early-Titled-Tuesday-Blitz-October-24-2023"]
[Site "Chess.com"]
[Date "2023.10.24"]
[Round "1"]
[White "ajedrez-facil"]
[Black "BigAl"]
[Result "0-1"]
[WhiteElo "2219"]
[BlackElo "2573"]
[TimeControl "180+1"]
[EndTime "8:06:44 PDT"]
[Termination "BigAl won by resignation"]

1. e4 {[%clk 0:02:58.3]} 1... c6 {[%clk 0:02:59.9]} 2. d4 {[%clk 0:02:57]} 2...
d5 {[%clk 0:03:00.2]} 3. exd5 {[%clk 0:02:53.9]} 3... cxd5 {[%clk 0:03:00.1]} 4.
Bd3 {[%clk 0:02:54.5]} 4... Nc6 {[%clk 0:02:59.9]} 5. Nf3 {[%clk 0:02:52.8]}
5... Bg4 {[%clk 0:02:58.7]} 6. c3 {[%clk 0:02:52]} 6... e6 {[%clk 0:02:58.8]} 7.
Bf4 {[%clk 0:02:52.1]} 7... Bd6 {[%clk 0:02:52.4]} 8. Bxd6 {[%clk 0:02:45.2]}
8... Qxd6 {[%clk 0:02:52.6]} 9. Nbd2 {[%clk 0:02:46.1]} 9... Nge7 {[%clk
0:02:52]} 10. h3 {[%clk 0:02:45.8]} 10... Bh5 {[%clk 0:02:51.9]} 11. Rc1 {[%clk
0:02:45.8]} 11... Bg6 {[%clk 0:02:37.9]} 12. Nf1 {[%clk 0:02:43.9]} 12... Nf5
{[%clk 0:02:29.3]} 13. Ne3 {[%clk 0:02:39.2]} 13... Nxe3 {[%clk 0:02:28.1]} 14.
fxe3 {[%clk 0:02:40.1]} 14... Qg3+ {[%clk 0:02:28.5]} 15. Kf1 {[%clk 0:02:39.8]}
15... O-O {[%clk 0:02:20.1]} 16. Bc2 {[%clk 0:02:25.7]} 16... Bh5 {[%clk
0:02:12.8]} 17. Qe1 {[%clk 0:02:22.2]} 17... Qd6 {[%clk 0:02:12.8]} 18. Qh4
{[%clk 0:01:50.8]} 18... Bg6 {[%clk 0:02:09.5]} 19. Ke2 {[%clk 0:01:45.7]} 19...
Bxc2 {[%clk 0:02:00.6]} 20. Rxc2 {[%clk 0:01:44.6]} 20... Ne7 {[%clk 0:01:54.1]}
21. Rf1 {[%clk 0:01:31]} 21... Nf5 {[%clk 0:01:37.6]} 22. Qf2 {[%clk 0:01:30.7]}
22... Ng3+ {[%clk 0:01:35.8]} 23. Ke1 {[%clk 0:01:21.6]} 23... Nxf1 {[%clk
0:01:34]} 24. Kxf1 {[%clk 0:01:19.8]} 24... Qa6+ {[%clk 0:01:33.2]} 25. Qe2
{[%clk 0:00:30.8]} 25... Qxa2 {[%clk 0:01:31.1]} 26. Ne5 {[%clk 0:00:28.3]}
26... f6 {[%clk 0:01:29]} 27. Nd7 {[%clk 0:00:24.6]} 27... Rf7 {[%clk
0:01:28.9]} 28. Nc5 {[%clk 0:00:23.7]} 28... Qa5 {[%clk 0:01:06.6]} 29. Nxe6
{[%clk 0:00:20.8]} 29... Re8 {[%clk 0:01:05.8]} 30. Nf4 {[%clk 0:00:20.4]} 30...
Re4 {[%clk 0:01:01.5]} 31. b4 {[%clk 0:00:17.5]} 31... Qd8 {[%clk 0:00:58.2]}
32. Kf2 {[%clk 0:00:16.8]} 32... Rfe7 {[%clk 0:00:54.5]} 33. c4 {[%clk
0:00:17.2]} 33... Rxe3 {[%clk 0:00:51]} 34. Qxe3 {[%clk 0:00:17.2]} 34... Rxe3
{[%clk 0:00:51.6]} 35. Kxe3 {[%clk 0:00:18.1]} 35... Qe7+ {[%clk 0:00:48.1]} 36.
Kd3 {[%clk 0:00:17.4]} 36... Qe4+ {[%clk 0:00:48.3]} 0-1

[Event "Early-Titled-Tuesday-Blitz-October-24-2023"]
[Site "Chess.com"]
[Date "2023.10.24"]
[Round "1"]
[White "Savagelittlemole"]
[Black "Jospem"]
[Result "0-1"]
[WhiteElo "2521"]
[BlackElo "3134"]
[TimeControl "180+1"]
[EndTime "8:06:46 PDT"]
[Termination "Jospem won on time"]

1. e4 {[%clk 0:03:00.9]} 1... c5 {[%clk 0:03:00.3]} 2. Nf3 {[%clk 0:03:00.5]}
2... d6 {[%clk 0:03:01]} 3. Bb5+ {[%clk 0:03:00.5]} 3... Nd7 {[%clk 0:03:01.1]}
4. O-O {[%clk 0:02:59.5]} 4... a6 {[%clk 0:03:01.6]} 5. Bd3 {[%clk 0:02:59.1]}
5... Ngf6 {[%clk 0:03:02]} 6. Re1 {[%clk 0:02:58.4]} 6... e6 {[%clk 0:03:02.5]}
7. c3 {[%clk 0:02:58]} 7... b6 {[%clk 0:03:02.6]} 8. Bc2 {[%clk 0:02:57.9]} 8...
Bb7 {[%clk 0:03:01.7]} 9. d4 {[%clk 0:02:58.3]} 9... Qc7 {[%clk 0:03:02.2]} 10.
Bf4 {[%clk 0:02:41.9]} 10... Be7 {[%clk 0:02:56.8]} 11. Nbd2 {[%clk 0:02:37.6]}
11... e5 {[%clk 0:02:57.2]} 12. Bg3 {[%clk 0:02:33.3]} 12... b5 {[%clk
0:02:48.8]} 13. Nf1 {[%clk 0:02:29.2]} 13... O-O {[%clk 0:02:48.6]} 14. d5
{[%clk 0:02:24.5]} 14... c4 {[%clk 0:02:47.4]} 15. Ne3 {[%clk 0:02:22.7]} 15...
g6 {[%clk 0:02:47.5]} 16. Bh4 {[%clk 0:02:20.5]} 16... Nc5 {[%clk 0:02:43.2]}
17. Nd2 {[%clk 0:01:54.4]} 17... Rac8 {[%clk 0:02:35.6]} 18. Ng4 {[%clk
0:01:35.2]} 18... Nh5 {[%clk 0:02:33.7]} 19. Nf3 {[%clk 0:01:13.7]} 19... Bxh4
{[%clk 0:02:15.6]} 20. Nxh4 {[%clk 0:01:14.6]} 20... Qe7 {[%clk 0:02:16]} 21. g3
{[%clk 0:01:13]} 21... Kh8 {[%clk 0:02:14.4]} 22. Ne3 {[%clk 0:01:05.9]} 22...
Ng7 {[%clk 0:02:08.6]} 23. Neg2 {[%clk 0:00:57.6]} 23... Rb8 {[%clk 0:02:08.8]}
24. f4 {[%clk 0:00:56.1]} 24... Bc8 {[%clk 0:02:08.7]} 25. f5 {[%clk 0:00:54.5]}
25... Ne8 {[%clk 0:02:05.8]} 26. Qe2 {[%clk 0:00:44.1]} 26... Rg8 {[%clk
0:02:06.1]} 27. Rf1 {[%clk 0:00:41.9]} 27... Nf6 {[%clk 0:02:04.7]} 28. fxg6
{[%clk 0:00:33.9]} 28... fxg6 {[%clk 0:02:05.6]} 29. Rae1 {[%clk 0:00:23.1]}
29... Rf8 {[%clk 0:02:05.5]} 30. Qd2 {[%clk 0:00:22.2]} 30... Kg8 {[%clk
0:02:03.3]} 31. Qg5 {[%clk 0:00:18]} 31... Qg7 {[%clk 0:01:56.3]} 32. Rf2 {[%clk
0:00:14.6]} 32... Rb7 {[%clk 0:01:56.5]} 33. Ref1 {[%clk 0:00:14.7]} 33... Rbf7
{[%clk 0:01:57.2]} 34. Qe3 {[%clk 0:00:12.4]} 34... Bh3 {[%clk 0:01:53.9]} 35.
Qe2 {[%clk 0:00:10.1]} 35... a5 {[%clk 0:01:50.6]} 36. a3 {[%clk 0:00:09.2]}
36... Bg4 {[%clk 0:01:44.2]} 37. Qe3 {[%clk 0:00:08.8]} 37... Bc8 {[%clk
0:01:44.9]} 38. Qe2 {[%clk 0:00:09]} 38... Bd7 {[%clk 0:01:35.4]} 39. a4 {[%clk
0:00:06.9]} 39... bxa4 {[%clk 0:01:33.2]} 40. Qxc4 {[%clk 0:00:06.9]} 40... Ng4
{[%clk 0:01:32]} 41. Rxf7 {[%clk 0:00:06.9]} 41... Rxf7 {[%clk 0:01:32.9]} 42.
Rxf7 {[%clk 0:00:07]} 42... Qxf7 {[%clk 0:01:33.8]} 43. Qe2 {[%clk 0:00:07.2]}
43... Qe7 {[%clk 0:01:32.6]} 44. Nf3 {[%clk 0:00:06.8]} 44... Qd8 {[%clk
0:01:32.4]} 45. h3 {[%clk 0:00:06.4]} 45... Nf6 {[%clk 0:01:32.5]} 46. g4 {[%clk
0:00:06.3]} 46... Qb6 {[%clk 0:01:33.1]} 47. Kh2 {[%clk 0:00:06]} 47... Qxb2
{[%clk 0:01:32.6]} 48. Qd2 {[%clk 0:00:03.9]} 48... a3 {[%clk 0:01:31.9]} 49.
Qg5 {[%clk 0:00:03.4]} 49... Kf7 {[%clk 0:01:27.9]} 50. Bd1 {[%clk 0:00:01.9]}
50... Qxc3 {[%clk 0:01:28.1]} 51. Qh6 {[%clk 0:00:01.8]} 51... Ncxe4 {[%clk
0:01:23]} 52. Ng5+ {[%clk 0:00:01.3]} 52... Nxg5 {[%clk 0:01:22.8]} 53. Qxg5
{[%clk 0:00:02.2]} 53... a2 {[%clk 0:01:22]} 54. Nh4 {[%clk 0:00:01]} 54... a1=Q
{[%clk 0:01:22]} 0-1

[Event "Early-Titled-Tuesday-Blitz-October-24-2023"]
[Site "Chess.com"]
[Date "2023.10.24"]
[Round "1"]
[White "MFatigue"]
[Black "mitrabhaa"]
[Result "1-0"]
[WhiteElo "2486"]
[BlackElo "2849"]
[TimeControl "180+1"]
[EndTime "8:06:47 PDT"]
[Termination "MFatigue won on time"]

1. e4 {[%clk 0:03:00.9]} 1... c6 {[%clk 0:02:58]} 2. Bc4 {[%clk 0:02:52.8]} 2...
d5 {[%clk 0:02:58.9]} 3. Bb3 {[%clk 0:02:50.3]} 3... dxe4 {[%clk 0:02:56.7]} 4.
Qh5 {[%clk 0:02:50.4]} 4... g6 {[%clk 0:02:51.8]} 5. Qh4 {[%clk 0:02:49.2]} 5...
Nf6 {[%clk 0:02:51.7]} 6. Nc3 {[%clk 0:02:49.8]} 6... Bg7 {[%clk 0:02:51.1]} 7.
Nxe4 {[%clk 0:02:48.9]} 7... O-O {[%clk 0:02:50.9]} 8. Nf3 {[%clk 0:02:48.3]}
8... Nbd7 {[%clk 0:02:49.7]} 9. d4 {[%clk 0:02:44.8]} 9... Nxe4 {[%clk 0:02:49]}
10. Qxe4 {[%clk 0:02:45.7]} 10... Nf6 {[%clk 0:02:49.7]} 11. Qe2 {[%clk
0:02:45.4]} 11... Bg4 {[%clk 0:02:50.1]} 12. c3 {[%clk 0:02:45]} 12... a5 {[%clk
0:02:49.8]} 13. a4 {[%clk 0:02:42]} 13... e6 {[%clk 0:02:48.9]} 14. h3 {[%clk
0:02:41.5]} 14... Bxf3 {[%clk 0:02:48.2]} 15. Qxf3 {[%clk 0:02:42.4]} 15... Nd5
{[%clk 0:02:49.1]} 16. O-O {[%clk 0:02:42.6]} 16... Qb6 {[%clk 0:02:48]} 17. Bc2
{[%clk 0:02:25.2]} 17... Rad8 {[%clk 0:02:47.4]} 18. Bg5 {[%clk 0:02:11.3]}
18... Rd7 {[%clk 0:02:42.3]} 19. Rab1 {[%clk 0:02:10.6]} 19... h6 {[%clk
0:02:41.5]} 20. Bh4 {[%clk 0:02:09]} 20... Kh7 {[%clk 0:02:41.2]} 21. Rfe1
{[%clk 0:02:03.8]} 21... c5 {[%clk 0:02:40.5]} 22. dxc5 {[%clk 0:01:58]} 22...
Qxc5 {[%clk 0:02:41.4]} 23. Bd3 {[%clk 0:01:53.3]} 23... Nc7 {[%clk 0:02:35.4]}
24. Rbd1 {[%clk 0:01:38.9]} 24... Rd5 {[%clk 0:02:25.2]} 25. Be4 {[%clk
0:01:32.7]} 25... Rxd1 {[%clk 0:02:22.7]} 26. Rxd1 {[%clk 0:01:33.6]} 26... b6
{[%clk 0:02:23]} 27. Rd7 {[%clk 0:01:28.9]} 27... b5 {[%clk 0:02:18.3]} 28. Be7
{[%clk 0:01:10.6]} 28... Qe5 {[%clk 0:00:24]} 29. Bxf8 {[%clk 0:01:02.9]} 29...
Bxf8 {[%clk 0:00:23.6]} 30. Qxf7+ {[%clk 0:00:52.5]} 30... Bg7 {[%clk
0:00:23.6]} 31. Bxg6+ {[%clk 0:00:40]} 31... Kh8 {[%clk 0:00:22.1]} 32. Rd8+
{[%clk 0:00:40.3]} 1-0